[Event "Paul Kerese Mälestusfestival 2022 Välkturniir"]
[Site "Paul Kerese Mälestusfestival 2022 Kiirturniir"]
[Date "????.??.??"]
[Round "10.2"]
[White "Agafonov, Yuri"]
[Black "Chukavin, Kirill"]
[Result "0-1"]
[TimeControl "3 min + 2 sek iga käigu eest"]
[BlackTitle "FM"]
[WhiteElo "1913"]
[BlackElo "2280"]

1. d4 {[%clk 00:03:03]} Nf6 {[%clk 00:03:04]} 2. Bg5 {[%clk 00:03:04]} d5
{[%clk 00:03:01]} {[%emt 00:00:05]} 3. e3 {[%clk 00:03:04]} {[%emt 00:00:03]}
c5 {[%clk 00:03:02]} {[%emt 00:00:01]} 4. c3 {[%clk 00:03:04]} {[%emt
00:00:01]} Qb6 {[%clk 00:03:02]} {[%emt 00:00:03]} 5. Qc1 {[%clk 00:03:03]}
{[%emt 00:00:03]} Bf5 {[%clk 00:03:01]} {[%emt 00:00:02]} 6. Nd2 {[%clk
00:03:03]} {[%emt 00:00:01]} Nc6 {[%clk 00:03:00]} {[%emt 00:00:04]} 7. Ngf3
{[%clk 00:03:01]} {[%emt 00:00:04]} e6 {[%clk 00:02:56]} {[%emt 00:00:06]} 8.
Be2 {[%clk 00:02:58]} {[%emt 00:00:04]} Rc8 {[%clk 00:02:57]} {[%emt 00:00:02]}
9. dxc5 {[%clk 00:02:49]} {[%emt 00:00:11]} Bxc5 {[%clk 00:02:57]} {[%emt
00:00:01]} 10. Bxf6 {[%clk 00:02:37]} {[%emt 00:00:14]} gxf6 {[%clk 00:02:58]}
{[%emt 00:00:02]} 11. Nb3 {[%clk 00:02:38]} Bd6 {[%clk 00:02:54]} {[%emt
00:00:07]} 12. Nbd4 {[%clk 00:02:27]} {[%emt 00:00:12]} Be4 {[%clk 00:02:53]}
{[%emt 00:00:04]} 13. Nxc6 {[%clk 00:02:27]} {[%emt 00:00:02]} bxc6 {[%clk
00:02:51]} {[%emt 00:00:04]} 14. O-O {[%clk 00:02:26]} {[%emt 00:00:02]} Rg8
{[%clk 00:02:52]} {[%emt 00:00:01]} 15. Qd2 {[%clk 00:02:24]} {[%emt 00:00:04]}
Rb8 {[%clk 00:02:47]} {[%emt 00:00:07]} 16. b3 {[%clk 00:02:23]} {[%emt
00:00:03]} Ke7 {[%clk 00:02:42]} {[%emt 00:00:07]} 17. Rfd1 {[%clk 00:02:22]}
{[%emt 00:00:03]} Qc7 {[%clk 00:02:39]} {[%emt 00:00:06]} 18. h3 {[%clk
00:02:09]} {[%emt 00:00:14]} Rg7 {[%clk 00:02:35]} {[%emt 00:00:06]} 19. Ne1
{[%clk 00:02:01]} {[%emt 00:00:10]} Rbg8 {[%clk 00:02:31]} {[%emt 00:00:05]} 20.
f3 {[%clk 00:01:45]} {[%emt 00:00:17]} Bf5 {[%clk 00:02:29]} {[%emt 00:00:05]}
21. g4 {[%clk 00:01:45]} {[%emt 00:00:01]} h5 {[%clk 00:02:26]} {[%emt
00:00:05]} 22. Kf1 {[%clk 00:01:29]} {[%emt 00:00:18]} hxg4 {[%clk 00:02:27]}
{[%emt 00:00:01]} 23. hxg4 {[%clk 00:01:26]} {[%emt 00:00:05]} Rh7 {[%clk
00:02:17]} {[%emt 00:00:12]} 24. f4 {[%clk 00:00:49]} {[%emt 00:00:39]} Rh1+
{[%clk 00:01:38]} {[%emt 00:00:41]} 25. Kg2 {[%clk 00:00:44]} {[%emt 00:00:07]}
Be4+ {[%clk 00:01:34]} {[%emt 00:00:06]} 26. Kf2 {[%clk 00:00:43]} {[%emt
00:00:03]} Rh2+ {[%clk 00:01:24]} {[%emt 00:00:12]} 27. Kf1 {[%clk 00:00:41]}
{[%emt 00:00:04]} Rgh8 {[%clk 00:01:25]} {[%emt 00:00:02]} 28. c4 {[%clk
00:00:23]} {[%emt 00:00:21]} Qb8 {[%emt 00:00:20]} 29. cxd5 {[%clk 00:00:20]}
{[%emt 00:00:03]} Rh1+ {[%clk 00:00:59]} {[%emt 00:00:11]} 30. Kf2 {[%clk
00:00:21]} R8h2+ {[%clk 00:01:00]} 31. Kg3 {[%clk 00:00:22]} {[%emt 00:00:02]}
Qh8 {[%clk 00:01:00]} {[%emt 00:00:02]} 0-1

[Event "Paul Kerese Mälestusfestival 2022 Välkturniir"]
[Site "Paul Kerese Mälestusfestival 2022 Kiirturniir"]
[Date "????.??.??"]
[Round "10.3"]
[White "Olde, Margareth"]
[Black "Maiorov, Nikita"]
[Result "1-0"]
[TimeControl "3 min + 2 sek iga käigu eest"]
[WhiteTitle "WIM"]
[BlackTitle "GM"]
[WhiteElo "1971"]
[BlackElo "2417"]

1. d4 {[%clk 00:03:03]} {[%emt 00:01:03]} d5 {[%clk 00:03:03]} {[%emt
00:00:01]} 2. Nf3 {[%clk 00:03:04]} {[%emt 00:00:02]} Nf6 {[%clk 00:03:02]}
{[%emt 00:00:03]} 3. g3 {[%clk 00:03:00]} {[%emt 00:00:06]} c6 {[%clk
00:03:00]} {[%emt 00:00:05]} 4. Bg2 {[%clk 00:02:58]} {[%emt 00:00:04]} Bf5
{[%clk 00:03:01]} 5. O-O {[%clk 00:02:56]} {[%emt 00:00:04]} e6 {[%clk
00:03:01]} {[%emt 00:00:01]} 6. c4 {[%clk 00:02:55]} {[%emt 00:00:03]} Be7
{[%clk 00:03:01]} {[%emt 00:00:01]} 7. Nbd2 {[%clk 00:02:53]} {[%emt 00:00:04]}
O-O {[%clk 00:03:01]} {[%emt 00:00:02]} 8. Re1 {[%clk 00:02:43]} {[%emt
00:00:13]} h6 {[%clk 00:02:59]} {[%emt 00:00:04]} 9. Ne5 {[%clk 00:02:40]}
{[%emt 00:00:05]} Nbd7 {[%clk 00:02:59]} {[%emt 00:00:02]} 10. b3 {[%clk
00:02:34]} {[%emt 00:00:08]} Bb4 {[%clk 00:02:50]} {[%emt 00:00:10]} 11. a3
{[%clk 00:02:11]} {[%emt 00:00:26]} Bc3 {[%clk 00:02:48]} {[%emt 00:00:03]} 12.
Ra2 {[%clk 00:02:13]} Bxd4 {[%clk 00:02:45]} {[%emt 00:00:06]} 13. Nxd7 {[%clk
00:02:09]} {[%emt 00:00:07]} Qxd7 {[%clk 00:02:27]} {[%emt 00:00:19]} 14. Nf3
{[%clk 00:01:40]} {[%emt 00:00:31]} Bb6 {[%clk 00:02:28]} {[%emt 00:00:01]} 15.
Bb2 {[%clk 00:01:33]} {[%emt 00:00:09]} dxc4 {[%clk 00:02:18]} {[%emt
00:00:11]} 16. bxc4 {[%clk 00:01:07]} {[%emt 00:00:29]} Qxd1 {[%clk 00:02:16]}
{[%emt 00:00:04]} 17. Rxd1 {[%clk 00:01:08]} Bc2 {[%clk 00:02:14]} {[%emt
00:00:04]} 18. Rc1 {[%clk 00:00:48]} {[%emt 00:00:22]} Bh7 {[%clk 00:02:12]}
{[%emt 00:00:04]} 19. Bxf6 {[%clk 00:00:47]} {[%emt 00:00:04]} gxf6 {[%clk
00:02:12]} {[%emt 00:00:02]} 20. c5 {[%clk 00:00:32]} {[%emt 00:00:17]} Bc7
{[%clk 00:02:09]} {[%emt 00:00:05]} 21. Rb2 {[%clk 00:00:32]} {[%emt 00:00:02]}
Rab8 {[%clk 00:02:09]} {[%emt 00:00:01]} 22. Nd4 {[%clk 00:00:29]} {[%emt
00:00:06]} Rfd8 {[%clk 00:02:09]} {[%emt 00:00:02]} 23. e3 {[%clk 00:00:30]}
Be5 {[%clk 00:02:08]} {[%emt 00:00:03]} 24. Rb4 {[%clk 00:00:32]} Bc7 {[%clk
00:02:00]} {[%emt 00:00:09]} 25. h4 {[%clk 00:00:32]} {[%emt 00:00:02]} e5
{[%clk 00:01:58]} {[%emt 00:00:03]} 26. Nf3 {[%clk 00:00:29]} {[%emt 00:00:05]}
Rd3 {[%clk 00:01:58]} {[%emt 00:00:02]} 27. a4 {[%clk 00:00:24]} {[%emt
00:00:07]} Ba5 {[%clk 00:01:57]} {[%emt 00:00:02]} 28. Rb2 {[%clk 00:00:23]}
{[%emt 00:00:03]} Kf8 {[%clk 00:01:38]} {[%emt 00:00:22]} 29. Ne1 {[%clk
00:00:22]} {[%emt 00:00:03]} Rd2 {[%clk 00:01:35]} {[%emt 00:00:04]} 30. Rxd2
{[%clk 00:00:16]} {[%emt 00:00:09]} Bxd2 {[%clk 00:01:36]} {[%emt 00:00:01]} 31.
Rd1 {[%clk 00:00:17]} Bb4 {[%clk 00:01:37]} {[%emt 00:00:02]} 32. Nd3 {[%clk
00:00:11]} {[%emt 00:00:09]} Rd8 {[%clk 00:01:33]} {[%emt 00:00:06]} 33. e4
{[%clk 00:00:07]} {[%emt 00:00:05]} Bxc5 {[%clk 00:01:32]} {[%emt 00:00:03]} 34.
Kf1 {[%clk 00:00:09]} Bb6 {[%clk 00:01:30]} {[%emt 00:00:04]} 35. Ke2 {[%clk
00:00:09]} {[%emt 00:00:02]} Rd4 {[%clk 00:01:31]} {[%emt 00:00:01]} 36. f3
{[%clk 00:00:06]} {[%emt 00:00:05]} Rxa4 {[%clk 00:01:32]} {[%emt 00:00:01]} 37.
g4 {[%clk 00:00:05]} {[%emt 00:00:02]} Ra2+ {[%clk 00:01:29]} {[%emt 00:00:04]}
38. Kf1 {[%clk 00:00:06]} {[%emt 00:00:01]} h5 {[%clk 00:01:30]} {[%emt
00:00:01]} 39. Bh3 {[%clk 00:00:06]} {[%emt 00:00:03]} hxg4 {[%clk 00:01:23]}
{[%emt 00:00:09]} 40. Bxg4 {[%clk 00:00:07]} Rh2 {[%clk 00:01:22]} {[%emt
00:00:03]} 41. h5 {[%clk 00:00:09]} Rh1+ {[%emt 00:00:01]} 42. Ke2 Rxd1 {[%clk
00:01:23]} {[%emt 00:00:02]} 43. Kxd1 {[%clk 00:00:12]} Kg7 {[%clk 00:01:23]}
{[%emt 00:00:02]} 44. Nb2 {[%clk 00:00:11]} {[%emt 00:00:03]} Kh6 {[%clk
00:01:22]} {[%emt 00:00:03]} 45. Nc4 {[%clk 00:00:12]} Bc7 {[%clk 00:01:22]}
{[%emt 00:00:02]} 46. Kc2 {[%clk 00:00:12]} {[%emt 00:00:03]} Kg5 {[%clk
00:01:22]} {[%emt 00:00:01]} 47. Ne3 {[%clk 00:00:13]} Bb6 {[%clk 00:01:15]}
{[%emt 00:00:09]} 48. Nc4 {[%clk 00:00:15]} f5 {[%clk 00:01:12]} {[%emt
00:00:05]} 49. exf5 {[%clk 00:00:09]} {[%emt 00:00:08]} Bc7 {[%clk 00:01:10]}
{[%emt 00:00:04]} 50. Ne3 {[%clk 00:00:08]} {[%emt 00:00:03]} e4 {[%clk
00:01:07]} {[%emt 00:00:05]} 51. fxe4 {[%clk 00:00:07]} {[%emt 00:00:03]} Kf4
{[%clk 00:01:08]} 52. h6 {[%clk 00:00:05]} {[%emt 00:00:04]} Kxe3 {[%clk
00:01:07]} {[%emt 00:00:03]} 53. Bh5 {[%clk 00:00:07]} Kxe4 {[%clk 00:01:07]}
{[%emt 00:00:02]} 54. Bg6 {[%clk 00:00:08]} fxg6 {[%emt 00:00:02]} 55. f6 Ke5
{[%clk 00:01:05]} {[%emt 00:00:03]} 56. f7 {[%clk 00:00:11]} Bd6 {[%clk
00:01:06]} 1-0

[Event "Paul Kerese Mälestusfestival 2022 Välkturniir"]
[Site "Paul Kerese Mälestusfestival 2022 Kiirturniir"]
[Date "????.??.??"]
[Round "10.4"]
[White "Bernotas, Arturs"]
[Black "Protassov, Vlad"]
[Result "1/2-1/2"]
[TimeControl "3 min + 2 sek iga käigu eest"]
[WhiteTitle "FM"]
[WhiteElo "2382"]
[BlackElo "1816"]

1. e4 {[%clk 00:03:02]} {[%emt 00:00:01]} c6 {[%clk 00:03:04]} 2. d4 {[%clk
00:03:00]} {[%emt 00:00:04]} d5 {[%clk 00:03:05]} {[%emt 00:00:01]} 3. exd5
{[%clk 00:03:01]} {[%emt 00:00:01]} cxd5 {[%clk 00:03:05]} {[%emt 00:00:01]} 4.
Bd3 {[%clk 00:03:02]} Nc6 {[%clk 00:03:06]} {[%emt 00:00:01]} 5. c3 {[%clk
00:03:03]} {[%emt 00:00:01]} Nf6 {[%clk 00:03:07]} {[%emt 00:00:01]} 6. Bf4
{[%clk 00:03:03]} {[%emt 00:00:02]} Bg4 {[%clk 00:03:07]} {[%emt 00:00:01]} 7.
Qb3 {[%clk 00:03:03]} {[%emt 00:00:02]} Qd7 {[%clk 00:03:08]} {[%emt 00:00:02]}
8. Nd2 {[%clk 00:03:02]} {[%emt 00:00:03]} e6 {[%clk 00:03:08]} {[%emt
00:00:01]} 9. Ngf3 {[%clk 00:03:02]} {[%emt 00:00:02]} Bxf3 {[%clk 00:03:09]}
{[%emt 00:00:02]} 10. Nxf3 {[%clk 00:03:02]} {[%emt 00:00:02]} Bd6 {[%clk
00:03:10]} {[%emt 00:00:01]} 11. Bxd6 {[%clk 00:02:52]} {[%emt 00:00:11]} Qxd6
{[%clk 00:03:11]} {[%emt 00:00:01]} 12. O-O {[%clk 00:02:52]} {[%emt 00:00:03]}
O-O {[%clk 00:03:11]} {[%emt 00:00:02]} 13. Rfe1 {[%clk 00:02:52]} {[%emt
00:00:02]} Qc7 {[%clk 00:03:12]} 14. Ne5 {[%clk 00:02:36]} {[%emt 00:00:18]}
Nxe5 {[%clk 00:03:12]} {[%emt 00:00:03]} 15. Rxe5 {[%clk 00:02:36]} {[%emt
00:00:02]} g6 {[%clk 00:03:11]} {[%emt 00:00:03]} 16. h3 {[%clk 00:02:29]}
{[%emt 00:00:09]} Rab8 {[%clk 00:03:07]} {[%emt 00:00:06]} 17. a4 {[%clk
00:02:28]} {[%emt 00:00:03]} a6 {[%clk 00:03:00]} {[%emt 00:00:09]} 18. g3
{[%clk 00:02:20]} {[%emt 00:00:09]} b5 {[%clk 00:02:53]} {[%emt 00:00:09]} 19.
axb5 {[%clk 00:02:20]} {[%emt 00:00:03]} axb5 {[%clk 00:02:54]} 20. Qb4 {[%clk
00:02:19]} {[%emt 00:00:02]} Rb6 {[%clk 00:02:03]} {[%emt 00:00:54]} 21. Ra5
{[%clk 00:02:13]} {[%emt 00:00:08]} Rfb8 {[%clk 00:02:01]} {[%emt 00:00:04]} 22.
Re1 {[%clk 00:02:13]} {[%emt 00:00:02]} Ne8 {[%clk 00:01:57]} {[%emt 00:00:06]}
23. Rea1 {[%clk 00:02:02]} {[%emt 00:00:13]} Nd6 {[%clk 00:01:55]} {[%emt
00:00:03]} 24. h4 {[%clk 00:01:57]} {[%emt 00:00:06]} h5 {[%clk 00:01:53]}
{[%emt 00:00:05]} 25. Ra7 {[%clk 00:01:48]} {[%emt 00:00:12]} R8b7 {[%clk
00:01:31]} {[%emt 00:00:24]} 26. Rxb7 {[%clk 00:01:46]} {[%emt 00:00:04]} Rxb7
{[%clk 00:01:29]} {[%emt 00:00:04]} 27. Ra8+ {[%clk 00:01:42]} {[%emt
00:00:06]} Kg7 {[%clk 00:01:28]} {[%emt 00:00:03]} 28. Qc5 {[%clk 00:01:35]}
{[%emt 00:00:09]} Qd7 {[%clk 00:00:24]} {[%emt 00:01:07]} 29. Ra6 {[%clk
00:01:14]} {[%emt 00:00:23]} Nc4 {[%clk 00:00:23]} {[%emt 00:00:02]} 30. Qb4
{[%clk 00:01:10]} {[%emt 00:00:06]} Ra7 {[%clk 00:00:21]} {[%emt 00:00:05]} 31.
Rxa7 {[%clk 00:00:40]} {[%emt 00:00:32]} Qxa7 {[%clk 00:00:22]} 32. b3 {[%clk
00:00:41]} Qa1+ {[%clk 00:00:18]} {[%emt 00:00:07]} 33. Kg2 {[%clk 00:00:42]}
{[%emt 00:00:01]} Nd2 {[%clk 00:00:04]} {[%emt 00:00:16]} 34. Bxb5 {[%clk
00:00:33]} {[%emt 00:00:11]} Qb1 {[%clk 00:00:05]} 35. Qd6 {[%clk 00:00:09]}
{[%emt 00:00:26]} Qxb3 {[%clk 00:00:04]} {[%emt 00:00:02]} 36. Be8 {[%clk
00:00:05]} {[%emt 00:00:06]} Qd1 {[%clk 00:00:04]} {[%emt 00:00:02]} 37. Bb5
{[%clk 00:00:04]} {[%emt 00:00:03]} Qf3+ {[%clk 00:00:04]} {[%emt 00:00:02]} 38.
Kg1 {[%clk 00:00:04]} {[%emt 00:00:01]} Qd1+ {[%clk 00:00:04]} {[%emt
00:00:02]} 39. Kg2 {[%clk 00:00:05]} Qf3+ {[%clk 00:00:05]} {[%emt 00:00:01]}
40. Kg1 {[%clk 00:00:06]} {[%emt 00:00:01]} Qd1+ {[%clk 00:00:04]} {[%emt
00:00:02]} 41. Kg2 {[%clk 00:00:06]} {[%emt 00:00:02]} Qf3+ {[%clk 00:00:05]}
{[%emt 00:00:01]} 42. Kg1 {[%emt 00:00:02]} Ne4 {[%emt 00:00:13]} 1/2-1/2

[Event "Paul Kerese Mälestusfestival 2022 Välkturniir"]
[Site "Paul Kerese Mälestusfestival 2022 Kiirturniir"]
[Date "????.??.??"]
[Round "10.5"]
[White "Krilovs, Nikolajs"]
[Black "Dzjuba, Jegor"]
[Result "1-0"]
[TimeControl "3 min + 2 sek iga käigu eest"]
[WhiteElo "1971"]
[BlackElo "1356"]

1. Nf3 {[%clk 00:03:02]} {[%emt 00:00:02]} d5 {[%clk 00:03:04]} 2. c4 {[%clk
00:03:03]} {[%emt 00:00:01]} c6 {[%clk 00:03:03]} {[%emt 00:00:03]} 3. g3
{[%clk 00:03:03]} {[%emt 00:00:01]} Nf6 {[%clk 00:02:56]} {[%emt 00:00:08]} 4.
Bg2 {[%clk 00:03:03]} {[%emt 00:00:02]} Qc7 {[%clk 00:02:56]} {[%emt 00:00:02]}
5. b3 {[%clk 00:03:00]} {[%emt 00:00:05]} e5 {[%clk 00:02:50]} {[%emt
00:00:08]} 6. Bb2 {[%clk 00:02:55]} {[%emt 00:00:06]} Bd6 {[%clk 00:02:49]}
{[%emt 00:00:04]} 7. c5 {[%clk 00:02:53]} {[%emt 00:00:04]} Bxc5 {[%clk
00:02:36]} {[%emt 00:00:14]} 8. Bxe5 {[%clk 00:02:33]} {[%emt 00:00:22]} Qe7
{[%clk 00:02:35]} {[%emt 00:00:03]} 9. O-O {[%clk 00:02:28]} {[%emt 00:00:08]}
Bd6 {[%clk 00:02:30]} {[%emt 00:00:07]} 10. Bb2 {[%clk 00:02:19]} {[%emt
00:00:11]} O-O {[%clk 00:02:28]} {[%emt 00:00:03]} 11. d3 {[%clk 00:02:18]}
{[%emt 00:00:03]} Bg4 {[%clk 00:02:19]} {[%emt 00:00:11]} 12. Qc2 {[%clk
00:02:09]} {[%emt 00:00:12]} Nbd7 {[%clk 00:01:53]} {[%emt 00:00:28]} 13. Nbd2
{[%clk 00:02:09]} {[%emt 00:00:02]} Ne5 {[%clk 00:01:26]} {[%emt 00:00:28]} 14.
Rae1 {[%clk 00:02:04]} {[%emt 00:00:08]} Rfe8 {[%clk 00:01:09]} {[%emt
00:00:19]} 15. Qb1 {[%clk 00:02:04]} {[%emt 00:00:02]} Rad8 {[%clk 00:01:06]}
{[%emt 00:00:04]} 16. Qa1 {[%clk 00:02:04]} {[%emt 00:00:02]} Ng6 {[%clk
00:00:55]} {[%emt 00:00:13]} 17. h3 {[%clk 00:01:57]} {[%emt 00:00:09]} Bd7
{[%clk 00:00:43]} {[%emt 00:00:14]} 18. e4 {[%clk 00:01:48]} {[%emt 00:00:11]}
dxe4 {[%clk 00:00:42]} {[%emt 00:00:03]} 19. dxe4 {[%clk 00:01:43]} {[%emt
00:00:06]} Ne5 {[%clk 00:00:33]} {[%emt 00:00:11]} 20. Nxe5 {[%clk 00:01:23]}
{[%emt 00:00:22]} Bxe5 {[%clk 00:00:34]} {[%emt 00:00:01]} 21. Bxe5 {[%clk
00:01:24]} Qxe5 {[%clk 00:00:35]} {[%emt 00:00:01]} 22. Qxe5 {[%clk 00:01:25]}
{[%emt 00:00:01]} Rxe5 {[%clk 00:00:36]} {[%emt 00:00:01]} 23. Nc4 {[%clk
00:01:25]} {[%emt 00:00:01]} Re7 {[%clk 00:00:23]} {[%emt 00:00:14]} 24. f4
{[%clk 00:01:21]} {[%emt 00:00:06]} Be6 {[%clk 00:00:17]} {[%emt 00:00:09]} 25.
e5 {[%clk 00:01:10]} {[%emt 00:00:12]} Nd5 {[%clk 00:00:15]} {[%emt 00:00:04]}
26. Nd6 {[%clk 00:01:08]} {[%emt 00:00:04]} Nb4 {[%clk 00:00:06]} {[%emt
00:00:11]} 27. Rf2 {[%clk 00:00:55]} {[%emt 00:00:14]} Nd3 {[%clk 00:00:06]}
{[%emt 00:00:02]} 28. Re3 {[%clk 00:00:44]} {[%emt 00:00:13]} Nxf2 {[%clk
00:00:06]} {[%emt 00:00:01]} 29. Kxf2 {[%clk 00:00:44]} {[%emt 00:00:01]} Red7
{[%clk 00:00:07]} {[%emt 00:00:02]} 30. g4 {[%clk 00:00:41]} {[%emt 00:00:05]}
Bd5 {[%clk 00:00:03]} {[%emt 00:00:06]} 31. Bxd5 {[%clk 00:00:41]} {[%emt
00:00:02]} cxd5 {[%clk 00:00:05]} 32. Rd3 {[%clk 00:00:42]} Rxd6 {[%clk
00:00:06]} {[%emt 00:00:01]} 33. exd6 {[%clk 00:00:43]} {[%emt 00:00:01]} Rxd6
{[%clk 00:00:07]} 34. Ke3 {[%clk 00:00:44]} {[%emt 00:00:01]} f6 {[%clk
00:00:07]} {[%emt 00:00:01]} 35. Kd4 {[%clk 00:00:44]} {[%emt 00:00:01]} Kf7
{[%clk 00:00:04]} {[%emt 00:00:05]} 36. Rc3 {[%clk 00:00:44]} {[%emt 00:00:02]}
Rd7 {[%clk 00:00:05]} {[%emt 00:00:01]} 37. Rc5 {[%clk 00:00:44]} {[%emt
00:00:03]} Ke6 {[%clk 00:00:05]} {[%emt 00:00:01]} 38. f5+ {[%clk 00:00:45]}
Kf7 {[%clk 00:00:04]} {[%emt 00:00:03]} 39. Rxd5 {[%clk 00:00:45]} {[%emt
00:00:02]} Re7 {[%clk 00:00:04]} {[%emt 00:00:02]} 40. Kc4 {[%clk 00:00:41]}
{[%emt 00:00:06]} Rc7+ {[%clk 00:00:04]} 41. Kb4 {[%clk 00:00:39]} {[%emt
00:00:03]} Ke7 {[%clk 00:00:04]} {[%emt 00:00:02]} 42. Rc5 {[%clk 00:00:36]}
{[%emt 00:00:05]} Rd7 {[%clk 00:00:04]} {[%emt 00:00:02]} 43. Rc3 {[%clk
00:00:36]} {[%emt 00:00:02]} Ke8 {[%clk 00:03:02]} {[%emt 00:00:04]} 1-0

[Event "Paul Kerese Mälestusfestival 2022 Välkturniir"]
[Site "Paul Kerese Mälestusfestival 2022 Kiirturniir"]
[Date "????.??.??"]
[Round "10.6"]
[White "Mikko, Rondo"]
[Black "Kraini, Juri"]
[Result "1/2-1/2"]
[TimeControl "3 min + 2 sek iga käigu eest"]
[WhiteElo "1933"]
[BlackElo "1692"]

1. Nf3 {[%clk 00:03:02]} {[%emt 00:00:02]} Nf6 {[%clk 00:03:03]} {[%emt
00:00:01]} 2. g3 {[%clk 00:03:03]} {[%emt 00:00:01]} g6 {[%clk 00:03:04]} 3.
Bg2 {[%clk 00:03:04]} Bg7 {[%clk 00:03:05]} {[%emt 00:00:02]} 4. O-O {[%clk
00:03:05]} {[%emt 00:00:01]} O-O {[%clk 00:03:06]} {[%emt 00:00:02]} 5. c4
{[%clk 00:03:02]} {[%emt 00:00:04]} d5 {[%clk 00:03:06]} {[%emt 00:00:01]} 6.
cxd5 {[%clk 00:03:03]} {[%emt 00:00:02]} Nxd5 {[%clk 00:03:07]} {[%emt
00:00:02]} 7. d4 {[%clk 00:03:04]} {[%emt 00:00:01]} c6 {[%clk 00:02:50]}
{[%emt 00:00:19]} 8. Nc3 {[%clk 00:03:04]} Nxc3 {[%clk 00:02:50]} {[%emt
00:00:02]} 9. bxc3 {[%clk 00:03:05]} {[%emt 00:00:01]} Bg4 {[%clk 00:02:47]}
{[%emt 00:00:05]} 10. h3 {[%clk 00:03:03]} {[%emt 00:00:04]} Bxf3 {[%clk
00:02:46]} {[%emt 00:00:03]} 11. Bxf3 {[%clk 00:03:03]} {[%emt 00:00:01]} Nd7
{[%clk 00:02:47]} 12. e4 {[%clk 00:03:01]} {[%emt 00:00:05]} e5 {[%clk
00:02:47]} {[%emt 00:00:01]} 13. Rb1 {[%clk 00:02:55]} {[%emt 00:00:09]} Qc7
{[%clk 00:02:46]} {[%emt 00:00:03]} 14. d5 {[%clk 00:02:48]} {[%emt 00:00:09]}
Nc5 {[%clk 00:02:44]} {[%emt 00:00:04]} 15. Ba3 {[%clk 00:02:46]} {[%emt
00:00:04]} b6 {[%clk 00:02:45]} {[%emt 00:00:01]} 16. Bxc5 {[%clk 00:02:43]}
{[%emt 00:00:05]} bxc5 {[%clk 00:02:45]} {[%emt 00:00:02]} 17. d6 {[%clk
00:02:29]} {[%emt 00:00:16]} Qa5 {[%clk 00:02:38]} {[%emt 00:00:09]} 18. Qd2
{[%clk 00:02:28]} {[%emt 00:00:03]} Rfd8 {[%clk 00:02:37]} {[%emt 00:00:03]} 19.
Rb7 {[%clk 00:02:27]} {[%emt 00:00:03]} Rab8 {[%clk 00:02:20]} {[%emt
00:00:20]} 20. Rfb1 {[%clk 00:02:27]} {[%emt 00:00:01]} Rxb7 {[%clk 00:02:20]}
{[%emt 00:00:03]} 21. Rxb7 {[%clk 00:02:28]} Qa6 {[%clk 00:02:20]} {[%emt
00:00:02]} 22. Rb1 {[%clk 00:01:49]} {[%emt 00:00:40]} Bf8 {[%clk 00:01:49]}
{[%emt 00:00:33]} 23. d7 {[%clk 00:01:50]} {[%emt 00:00:01]} Qc4 {[%clk
00:01:50]} {[%emt 00:00:01]} 24. Be2 {[%clk 00:00:58]} {[%emt 00:00:54]} Qxe4
{[%clk 00:01:48]} {[%emt 00:00:05]} 25. Rd1 {[%clk 00:00:44]} {[%emt 00:00:16]}
Be7 {[%clk 00:01:43]} {[%emt 00:00:06]} 26. Ba6 {[%clk 00:00:40]} {[%emt
00:00:06]} c4 {[%clk 00:01:23]} {[%emt 00:00:22]} 27. Qe3 {[%clk 00:00:25]}
{[%emt 00:00:17]} Qxe3 {[%clk 00:01:23]} {[%emt 00:00:03]} 28. fxe3 {[%clk
00:00:26]} Bc5 {[%clk 00:01:24]} 29. Kf2 {[%clk 00:00:25]} {[%emt 00:00:02]}
Kf8 {[%clk 00:01:24]} {[%emt 00:00:02]} 30. Bxc4 {[%clk 00:00:06]} {[%emt
00:00:21]} Ke7 {[%clk 00:01:26]} 31. Kf3 {[%clk 00:00:06]} {[%emt 00:00:02]} f5
{[%clk 00:01:26]} {[%emt 00:00:02]} 32. e4 {[%clk 00:00:05]} {[%emt 00:00:02]}
Rxd7 {[%clk 00:01:23]} {[%emt 00:00:05]} 33. Rxd7+ {[%clk 00:00:06]} Kxd7
{[%clk 00:01:24]} {[%emt 00:00:01]} 34. Bg8 {[%clk 00:00:07]} {[%emt 00:00:01]}
Ke7 {[%clk 00:01:02]} {[%emt 00:00:24]} 35. Bxh7 {[%clk 00:00:06]} {[%emt
00:00:03]} Kf6 {[%clk 00:01:03]} {[%emt 00:00:01]} 36. Bg8 {[%clk 00:00:05]}
{[%emt 00:00:02]} Ba3 {[%clk 00:00:59]} {[%emt 00:00:06]} 37. Bb3 {[%clk
00:00:06]} {[%emt 00:00:02]} c5 {[%clk 00:01:00]} {[%emt 00:00:01]} 38. Bd5
{[%clk 00:00:06]} {[%emt 00:00:02]} Bb2 {[%emt 00:00:02]} 39. c4 Bd4 {[%clk
00:00:59]} 40. a4 {[%clk 00:00:06]} {[%emt 00:00:02]} Bc3 {[%clk 00:01:00]}
{[%emt 00:00:01]} 41. h4 {[%clk 00:00:07]} {[%emt 00:00:02]} Be1 {[%clk
00:01:00]} {[%emt 00:00:01]} 42. Bc6 {[%clk 00:00:08]} {[%emt 00:00:01]} Bd2
{[%clk 00:00:58]} {[%emt 00:00:05]} 43. Bd5 {[%clk 00:00:08]} {[%emt 00:00:01]}
Bc3 {[%clk 00:00:59]} {[%emt 00:00:01]} 44. Bc6 {[%clk 00:00:09]} Bd4 {[%clk
00:00:59]} {[%emt 00:00:01]} 1/2-1/2